Cogmind - Beta 10.2 @@@ ROGUE MODE // 2021.08.07 @ 16:26:23 Player: DotFX Result: Destroyed by Y-54 Guardian with Gatling Laser Performance ------------- Evolutions (3) 1500 Regions Visited (5) 1000 Robots Destroyed (35) 175 Value Destroyed (1031) 1031 Prototype IDs (0) 0 Alien Tech Used (0) 0 Bonus (0) 0 TOTAL SCORE: 3706 Bonus ------- None Cogmind --------- Core Integrity 0/700 Matter 300/300 Energy 100/100 System Corruption 0% Temperature Cool (6) Movement Core (50) Location -7/Factory Parts ------- > --- POWER (3) -------- (None) > --- PROPULSION (3) --- (None) > --- UTILITY (4) ------ Seismic Analyzer > --- WEAPON (3) ------- (None) > --- INVENTORY (4) ---- Medium Matter Pod (100) Mini Grenade Launcher Peak State ------------ > --- POWER ------------ Light Angular Momentum Engine > --- PROPULSION ------- Improved Titanium Leg Improved Titanium Leg Improved Titanium Leg > --- UTILITY ---------- Enhanced Optical Array Improved Terrain Scanner Seismic Analyzer > --- WEAPON ----------- Greatsword > --- INVENTORY -------- Medium Matter Pod Mini Grenade Launcher [Rating: 32] Favorites ----------- Power Light Ion Engine Engine Light Ion Engine Propulsion Improved Titanium Leg Treads Light Treads Leg Improved Titanium Leg Flight Unit Flight Unit Utility Improved Terrain Scanner Device Improved Terrain Scanner Storage Medium Matter Pod Processor Seismic Analyzer Protection Light Armor Plating Weapon Particle Cannon Energy Gun EM Pulse Gun Energy Cannon Particle Cannon Ballistic Gun Light Assault Rifle Launcher Mini Grenade Launcher Impact Weapon Mace Slashing Weapon Greatsword Build | -11 -10 -9 -9 -8 -7 ------- Run | Scr Mat Mat Min Mat Fac Slots Evolved 6 | . . 2 . 2 2 Power 2 | . . 1 . . 1 Propulsion 1 | . . . . 1 . Utility 2 | . . . . 1 1 Weapon 1 | . . 1 . . . Parts Attached 37 | 6 6 15 4 6 . Power 4 | 1 . 2 . 1 . Engine 4 | 1 . 2 . 1 . Core . | . . . . . . Reactor . | . . . . . . Propulsion 13 | 2 2 4 2 3 . Treads 2 | . . 2 . . . Leg 9 | 2 . 2 2 3 . Wheel . | . . . . . . Hover . | . . . . . . Flight 2 | . 2 . . . . Utility 9 | 1 3 4 . 1 . Device 1 | . . 1 . . . Storage 5 | 1 3 1 . . . Processor 2 | . . 1 . 1 . Hackware . | . . . . . . Protection 1 | . . 1 . . . Artifact . | . . . . . . Weapon 11 | 2 1 5 2 1 . Energy Gun 2 | . . 2 . . . Energy Cannon 2 | . . 2 . . . Ballistic Gun 2 | 2 . . . . . Ballistic Cannon . | . . . . . . Launcher 3 | . 1 1 1 . . Special Weapon . | . . . . . . Impact Weapon 1 | . . . 1 . . Slashing Weapon 1 | . . . . 1 . Piercing Weapon . | . . . . . . Special Melee Weapon . | . . . . . . Unidentified Prototypes . | . . . . . . Parts Lost 17 | . 1 5 4 3 4 Power 4 | . 1 . 2 1 . Propulsion 6 | . . 2 1 . 3 Utility 2 | . . . . 1 1 Weapon 5 | . . 3 1 1 . Highest Loss Streak 4 | . 1 3 4 2 4 Average Slot Usage (%) 72 | . 80 79 88 62 26 Engine 7 | . 9 11 14 2 . Treads 4 | . . 8 16 . . Leg 15 | . 18 7 5 26 12 Flight 3 | . 9 4 . . . Device 5 | . . 5 11 7 . Storage 4 | . 13 6 . . . Processor 7 | . . 1 11 17 13 Protection 1 | . . 2 . . . Energy Gun 2 | . . 5 5 . . Energy Cannon 5 | . . 13 8 . . Ballistic Gun 4 | . 23 . . . . Launcher 5 | . 4 11 6 . . Impact Weapon 1 | . . . 9 . . Slashing Weapon 2 | . . . . 7 . Naked Turns . | . . . . . . Heaviest Build 43 | 11 43 18 15 15 . Greatest Support 60 | 20 20 40 40 60 40 Greatest Overweight (x) 4 | . 4 1 . . . Average Overweight (x) . | . . . . . . Largest Inventory Capacity 20 | 6 20 12 4 4 4 Average Capacity 4 | 5 6 4 4 4 4 Most Carried 5 | 3 5 4 4 4 2 Average Carried 1 | . 1 1 3 2 2 Final Capacity 6 | 6 4 4 4 4 4 Final Carried 4 | . 2 4 3 2 2 Class Distribution -------------------- 42% | Mutant 24% | Assassin 13% | Gunner 10% | Scavenger-Tank 9% | Skirmisher Dominant Class ---------------- Mutant | -10/Materials Gunner | -9/Materials Mutant | -9/Mines Assassin | -8/Materials Mutant | -7/Factory Resources | -11 -10 -9 -9 -8 -7 ----------- Run | Scr Mat Mat Min Mat Fac Matter Collected 963 | 212 41 520 70 120 . Remotely . | . . . . . . Salvage Created 992 | . 41 338 288 325 . Parts 65 | . 6 17 15 27 . Haulers Intercepted 1 | . . 1 . . . Recyclers Shooed . | . . . . . . Parts Field Recycled . | . . . . . . Retrieved Matter . | . . . . . . Parts Self-Destructed . | . . . . . . Prevented . | . . . . . . Kills | -11 -10 -9 -9 -8 -7 ------- Run | Scr Mat Mat Min Mat Fac Combat Hostiles Destroyed 29 | . 3 9 10 7 . Melee 8 | . . . 1 7 . Guns 4 | . 3 1 . . . Cannons 6 | . . 3 3 . . AOE 11 | . . 5 6 . . Classes Destroyed 10 | . 1 6 2 1 . Worker 1 | . . 1 . . . Builder 2 | . . . 2 . . Hauler 1 | . . 1 . . . Recycler 1 | . . 1 . . . Watcher 1 | . . 1 . . . Swarmer 10 | . 3 3 3 1 . Grunt 12 | . . 3 6 3 . Duelist 1 | . . . 1 . . Sentry 5 | . . 3 . 2 . Hunter 1 | . . . . 1 . Best Kill Streak 4 | . 2 4 4 4 . Combat Bots Only 4 | . 2 3 3 4 . Max Kills in Single Turn 4 | . 1 4 1 1 . Gunslinging . | . . . . . . Exploded 3 | . . 3 1 . . Melee 1 | . . . 1 1 . Uniques/NPCs Destroyed . | . . . . . . Combat | -11 -10 -9 -9 -8 -7 -------- Run | Scr Mat Mat Min Mat Fac Damage Taken 2871 | . 208 539 535 681 908 Core 1083 | . 54 141 64 122 702 Absorbed by Shields . | . . . . . . Core Remaining (%) 75 | 100 78 . 48 77 . Volleys Fired 53 | . 21 18 14 . . Largest 3 | . 2 3 3 . . Hottest 166 | . 50 166 138 . . Shots Fired 103 | . 42 36 25 . . Gun 52 | . 39 7 6 . . Cannon 21 | . . 13 8 . . Launcher 30 | . 3 16 11 . . Special . | . . . . . . Kinetic 43 | . 39 4 . . . Thermal 23 | . . 15 8 . . Explosive 30 | . 3 16 11 . . Electromagnetic 7 | . . 1 6 . . Robot Hit Streak 10 | . 6 10 9 . . Robot Miss Streak 3 | . 3 3 2 . . Penetration Max . | . . . . . . Secondary Targets 1 | . 1 . . . . Max Gunslinging Chain 1 | . 1 . . . . Shots Hit Robots 86 | . 26 22 24 14 . Core Hits 49 | . 7 20 15 7 . Critical Hits . | . . . . . . Critical Kills . | . . . . . . Critical Parts Destroyed . | . . . . . . Melee Attacks 35 | . . . 11 24 . Impact 11 | . . . 11 . . Slashing 24 | . . . . 24 . Piercing . | . . . . . . Sneak Attacks . | . . . . . . Combat Hostiles . | . . . . . . Follow-up Attacks . | . . . . . . Damage Inflicted 2710 | . 267 923 818 702 . Guns 240 | . 164 64 12 . . Cannons 183 | . . 122 61 . . Explosions 1356 | . 103 737 516 . . Melee 931 | . . . 229 702 . Ramming . | . . . . . . Kinetic 199 | . 164 35 . . . Thermal 212 | . . 151 61 . . Explosive 1356 | . 103 737 516 . . Electromagnetic 12 | . . . 12 . . Impact 229 | . . . 229 . . Slashing 702 | . . . . 702 . Piercing . | . . . . . . Highest Corruption . | . . . . . . Average Corruption . | . . . . . . Corruption Purged . | . . . . . . Overload Shots . | . . . . . . Overflow Damage 115 | . 8 31 36 40 . Projectiles . | . . . . . . Explosions 75 | . 8 31 36 . . Melee 40 | . . . . 40 . Knockbacks 1 | . . . 1 . . Impact 1 | . . . 1 . . Kinetic . | . . . . . . Secondary . | . . . . . . Self-Inflicted Damage 427 | . 45 247 135 . . Shots 13 | . 2 7 4 . . Rammed . | . . . . . . Targets Rammed . | . . . . . . Kicked . | . . . . . . Crushed . | . . . . . . Highest Temperature 234 | . 4 228 234 . . Average Temperature 76 | . 3 80 80 . . Received Heat Transfer 642 | . . 99 183 72 288 Siege Activations . | . . . . . . Robots Corrupted . | . . . . . . Combat Hostiles . | . . . . . . Parts Fried . | . . . . . . Impact Corruptions . | . . . . . . Robots Melted . | . . . . . . Combat Hostiles . | . . . . . . Parts Melted . | . . . . . . Heat Transferred 407 | . . 296 111 . . Parts Sabotaged . | . . . . . . Parts Stolen . | . . . . . . Parts Stripped . | . . . . . . Power Chain Reactions . | . . . . . . Missiles Intercepted . | . . . . . . Alert | -11 -10 -9 -9 -8 -7 ------- Run | Scr Mat Mat Min Mat Fac Peak Influence 355 | . 145 253 355 223 93 Initial 138 | . . 56 70 138 78 Average 123 | . 77 124 255 130 69 Maximum Alert Level 1 | . . 1 1 1 . Low Security (%) 88 | 100 100 97 4 96 100 Level 1 11 | . . 2 95 3 . Level 2 . | . . . . . . Level 3 . | . . . . . . Level 4 . | . . . . . . Level 5 . | . . . . . . High Security . | . . . . . . Max Security . | . . . . . . Squads Dispatched . | . . . . . . Investigation . | . . . . . . Extermination . | . . . . . . Reinforcement . | . . . . . . Assault . | . . . . . . Garrison . | . . . . . . Intercept . | . . . . . . Construction Impeded . | . . . . . . Haulers Reinforced . | . . . . . . Stealth | -11 -10 -9 -9 -8 -7 --------- Run | Scr Mat Mat Min Mat Fac Distress Signals 2 | . . . . 2 . Communications Jammed . | . . . . . . Distress Signals . | . . . . . . Times Spotted 48 | . 9 10 11 17 1 Peak Tracking Total 10 | . 4 3 3 10 1 Tactical Retreats 3 | . 1 . 1 1 . Traps | -11 -10 -9 -9 -8 -7 ------- Run | Scr Mat Mat Min Mat Fac Traps Triggered 1 | . . . . 1 . Indirectly . | . . . . . . Trap Hack Attempts . | . . . . . . Triggered . | . . . . . . Disarmed . | . . . . . . Reprogrammed . | . . . . . . Reused . | . . . . . . Traps Extracted . | . . . . . . Installed . | . . . . . . Triggered . | . . . . . . Machines | -11 -10 -9 -9 -8 -7 ---------- Run | Scr Mat Mat Min Mat Fac Machines Disabled 8 | . . 4 4 . . Max in Single Turn 3 | . . 2 3 . . Machines Sabotaged . | . . . . . . Garrisons Compromised . | . . . . . . Overloaded Fab Kills . | . . . . . . Fab Network Shutdowns . | . . . . . . Hacking | -11 -10 -9 -9 -8 -7 --------- Run | Scr Mat Mat Min Mat Fac Machines Accessed 1 | . 1 . . . . Terminals 1 | . 1 . . . . Fabricators . | . . . . . . Repair Stations . | . . . . . . Recycling Units . | . . . . . . Scanalyzers . | . . . . . . Garrison Access . | . . . . . . Total Hacks 1 | . 1 . . . . Successful 1 | . 1 . . . . Failed . | . . . . . . Catastrophic . | . . . . . . Database Lockouts . | . . . . . . Manual . | . . . . . . Terminals 1 | . 1 . . . . Fabricators . | . . . . . . Repair Stations . | . . . . . . Recycling Units . | . . . . . . Scanalyzers . | . . . . . . Garrison Access . | . . . . . . Terminal Hacks 1 | . 1 . . . . Dispatch Records 1 | . 1 . . . . Fabricator Hacks . | . . . . . . Repair Station Hacks . | . . . . . . Recycling Unit Hacks . | . . . . . . Scanalyzer . | . . . . . . Garrison Access Hacks . | . . . . . . Unauthorized Hacks . | . . . . . . Terminals . | . . . . . . Fabricators . | . . . . . . Repair Stations . | . . . . . . Recycling Units . | . . . . . . Scanalyzers . | . . . . . . Garrison Access . | . . . . . . Data Cores Recovered . | . . . . . . Used . | . . . . . . Hacking Detections . | . . . . . . Full Trace Events . | . . . . . . Feedback Events . | . . . . . . Feedback Blocked . | . . . . . . Robot Schematics Acquired . | . . . . . . Robots Built . | . . . . . . Matter . | . . . . . . Time . | . . . . . . Total Robot Build Rating . | . . . . . . Part Schematics Acquired . | . . . . . . Parts Built . | . . . . . . Matter . | . . . . . . Time . | . . . . . . Total Part Build Rating . | . . . . . . Parts Repaired . | . . . . . . Time . | . . . . . . Parts Recycled . | . . . . . . Recycled Matter . | . . . . . . Retrieved Matter . | . . . . . . Retrieved Components . | . . . . . . Parts Scanalyzed . | . . . . . . Part Schematics Acquired . | . . . . . . Parts Damaged . | . . . . . . Bothacking | -11 -10 -9 -9 -8 -7 ------------ Run | Scr Mat Mat Min Mat Fac Used RIF Installer . | . . . . . . Robots Hacked . | . . . . . . Non-combat . | . . . . . . Combat . | . . . . . . Robot Hacks Applied . | . . . . . . Relay Couplers Released . | . . . . . . Robots Rewired . | . . . . . . Allies Hacked . | . . . . . . Hacks Repelled . | . . . . . . Allies | -11 -10 -9 -9 -8 -7 -------- Run | Scr Mat Mat Min Mat Fac Total Allies . | . . . . . . Largest Group . | . . . . . . Highest-Rated Group . | . . . . . . Highest-Rated Ally . | . . . . . . Total Orders . | . . . . . . Ally Attacks . | . . . . . . Total Damage . | . . . . . . Kills . | . . . . . . Allies Corrupted . | . . . . . . Allies Melted . | . . . . . . Intel | -11 -10 -9 -9 -8 -7 ------- Run | Scr Mat Mat Min Mat Fac Robot Analysis Total . | . . . . . . Derelict Logs Recovered . | . . . . . . Drone Launches . | . . . . . . Drone Recoveries . | . . . . . . Exploration | -11 -10 -9 -9 -8 -7 ------------- Run | Scr Mat Mat Min Mat Fac Turns Passed 1997 | 90 316 705 196 598 92 Spaces Moved 1092 | 80 231 429 86 231 35 Core 31 | 31 . . . . . Treads 222 | . . 168 54 . . Legs 693 | 49 122 224 32 231 35 Wheels . | . . . . . . Hover . | . . . . . . Flight 146 | . 109 37 . . . Fastest Speed 37 | 50 37 37 120 120 130 Average Speed 122 | 92 84 140 145 129 130 Slowest Speed 357 | 120 357 160 160 130 130 Overloaded Moves . | . . . . . . Propulsion Burnouts . | . . . . . . Robots Hopped 1 | . 1 . . . . Cave-ins Triggered . | . . . . . . Exploration Rate (%) 22 | 6 36 38 25 27 1 Regions Visited 5 Branch Regions 1 Pre-discovered Areas . | . . . . . . Known Exits Taken . | . . . . . . Unknown Exits Taken 5 | 1 1 1 1 1 . Scrap Searched . | . . . . . . Spaces Dug . | . . . . . . Terrain Destroyed 234 | . 21 127 86 . . Melee . | . . . . . . Projectile 2 | . . . 2 . . AOE 232 | . 21 127 84 . . Terrain Rammed . | . . . . . . Walls Destroyed . | . . . . . . Machines Disabled . | . . . . . . Actions | -11 -10 -9 -9 -8 -7 --------- Run | Scr Mat Mat Min Mat Fac Total 1603 | 95 321 504 117 485 81 Wait 331 | 4 49 18 . 214 46 Move 1085 | 79 228 428 85 230 35 Hop 1 | . 1 . . . . Pick Up 36 | 6 6 17 1 6 . Fast Attach 1 | . . . 1 . . Attach 31 | 6 6 14 . 5 . Detach 8 | . 6 2 . . . Swap 5 | . . 1 3 1 . Drop 17 | . 4 6 2 5 . Fire 53 | . 21 18 14 . . Melee 35 | . . . 11 24 . Ram . | . . . . . . Kick . | . . . . . . Crush . | . . . . . . Escape Stasis . | . . . . . . Rewire . | . . . . . . Trap . | . . . . . . Miscellaneous . | . . . . . . Route ------- -11/Scrapyard -10/Materials -9/Materials (discovered 2 exits: [*Mat] / [*Min]) -9/Mines -8/Materials -7/Factory History --------- Turn | Location | Event 19 | -11/Scrapyard | Discovered new exit (range 15) 91 | -11/Scrapyard | Entered Materials 340 | -10/Materials | Build established: Mutant 378 | -10/Materials | Discovered new exit (range 15) 407 | -10/Materials | Entered another Materials area 407 | -9/Materials | Evolved 2 slots: Power x1, Weapon x1 491 | -9/Materials | Lost 3 parts (1n2w) 803 | -9/Materials | Discovered new exit (range 10) 1061 | -9/Materials | Discovered new exit (range 13) 1112 | -9/Materials | Entered Mines 1282 | -9/Mines | Lost 4 parts (2p1n1w) 1289 | -9/Mines | Core integrity fell below 50% 1292 | -9/Mines | Discovered new exit (range 7) 1308 | -9/Mines | Entered Materials 1308 | -8/Materials | Evolved 2 slots: Propulsion x1, Utility x1 1634 | -8/Materials | Build established: Assassin 1873 | -8/Materials | Discovered new exit (range 21) 1906 | -8/Materials | Entered Factory 1906 | -7/Factory | Evolved 2 slots: Power x1, Utility x1 1976 | -7/Factory | Core integrity fell below 50% 1989 | -7/Factory | Core integrity fell below 20% 1998 | -7/Factory | Destroyed by Y-54 Guardian with Gatling Laser Last Messages --------------- H-55 Commando destroyed. R-06 Scavenger collects Carbon-fiber Leg. R-06 Scavenger collects Med. Matter Pod. Destroyed Beam Rifle. R-06 Scavenger collects Lgt. Nuclear Core. Y-45 Defender destroyed. R-06 Scavenger collects Imp. Ion Engine. K-01 Serf collects debris. Destroyed Flight Unit. K-01 Serf collects debris. R-06 Scavenger collects Flight Unit. R-06 Scavenger collects Lgt. Ion Engine. EXIT=FOUND Greatsword destroyed. PARAMETERS=POWER_1,UTILITY_1 LOCATION=UNKNOWN GOAL=ESCAPE K-01 Serf collects debris. Imp. Titanium Leg destroyed. Enh. Optical Array destroyed. Map ----- +----------------------------------------------------+ | ???????????????????????????????#+#+#### #? | | ???????????????????????????????# #? | | ???????????????????????######### #? | | ???????????????????????+ #? | | ???????????????????????######### #? | | ???????????????????????????????# #? | | ???????????????????????????????# #? | | ???????????????????????????????# #? | | ???????????????????????????????# ########? | | ???????????????????????????????+ #???????? | | ???????????????????????????????# #???????? | | ???????????????????????????????# #???????? | | ??????????????????????#+?????### ###?????? | | ??????????????????????# ?????# ! #?????? | | ??????????????????????# ###### #?????? | | ??????????????????????# #?????? | | ??????????????????????# #?????? | | ??????????????????????+ T #?????? | | ??????????????????????# ! #?????? | | ??????????????????????# #?????? | | ??????????????????????## ### #?????? | | ???????????????????????# #?# #?????? | | ???????????????????????# #?#####+#####?????? | | ???????????????????????# #?????????????????? | | ??????????????????????## ##????????????????? | | ??????????????????????# @ #????????????????? | | ????????????????? #????????????????? | | ??????????? Y #????????????????? | | ?????? #????????????????? | | ?????######## ##### #????????????????? | | ????????????###+#?????#######????????????????? | | ?????????????????????????????????????????????? | | ?????????????????????????????????????????????? | | ?????????????????????????????????????????????? | | ?????????????????????????????????????????????? | | ?????????????????????????????????????????????? | | ?????????????????????????????????????????????? | | ?????????????????????????????????????????????? | | ?????????????????????????????????????????????? | | ?????????????????????????????????????????????? | | ?????????????????????????????????????????????? | | ?????????????????????????????????????????????? | | ?????????????????????????????????????????????? | | ?????????????????????????????????????????????? | | ?????????????????????????????????????????????? | | ?????????????????????????????????????????????? | | ?????????????????????????????????????????????? | | ?????????????????????????????????????????????? | | ?????????????????????????????????????????????? | | ?????????????????????????????????????????????? | +----------------------------------------------------+ Best States ------------- Heat Dissipation 34 Energy Generation 18 Energy Capacity 250 Matter Stores 339 Matter Capacity 400 Sight Range 22 Terrain Scan Range 16 Terrain Scan Density 60 Armor Coverage 150 Evasion (%) 62 Recoil Reduction 2 Item Schematics ----------------- None Robot Schematics ------------------ None Fabricated ------------ Nothing Alien Tech Used ----------------- None Achievements -------------- Let's See Who's Tougher Loot Pinata Remodeling Challenges ------------ None Game ------ Seed HackingFortressCanceller Manual? 0 Play Time 00:35:05 Cumulative 3.7 hours Start 2021.08.07 @ 15:48:40 End 2021.08.07 @ 16:26:23 Sessions 1 Manual Loads 0 Difficulty Rogue Special Mode None Game No. 9 Rogue 9 Adventurer 0 Explorer 0 Win Type - Total 0 Types 0/0/0/0/0/0/0/0/0 Lore% 2 Gallery% 8 Achievement% 5 Wizard Run 0 Options --------- ASCII 0 Keyboard 0 Movement Mouse Keybinds 0 Fullscreen 1 Font 12/Smallcaps Map View 83x54 Tactical HUD 0 Map Filters NONE Filters NONE Steam 1 RUN: c11a10a3-5fa7-4494-a19d-63d850698214